fUSD/lending_fUSD_20250123
["ID","MTS","AMOUNT","RATE_DAILY","PERIOD"]
[350152531,1737658234079,-500.0,0.00016438,2]
[350152533,1737658234088,-500.0,0.00016438,2]
[350152535,1737658234098,-500.0,0.00016438,2]
[350152537,1737658234108,-500.0,0.00016438,2]
[350152539,1737658234117,-500.0,0.00016438,2]
[350152541,1737658234127,-500.0,0.00016438,2]
[350152543,1737658234136,-500.0,0.00016438,2]
[350152545,1737658234147,-500.0,0.00016438,2]
[350152547,1737658234157,-500.0,0.00016438,2]
[350152549,1737658234167,-507.43775725,0.00016438,2]
[350152550,1737658234177,-500.0,0.00016438,2]
[350152551,1737658234187,-501.01729718,0.00016438,2]
[350152552,1737658234196,-500.0,0.00016438,2]
[350152553,1737658234205,-500.0,0.00016438,2]
[350152554,1737658234214,-500.0,0.00016438,2]
[350152555,1737658234224,-500.0,0.00016438,2]
[350152556,1737658234233,-500.0,0.00016438,2]
[350152557,1737658234243,-500.0,0.00016438,2]
[350152558,1737658234252,-500.0,0.00016438,2]
[350152559,1737658234261,-500.0,0.00016438,2]
[350152560,1737658234270,-500.0,0.00016438,2]
[350152561,1737658234279,-500.0,0.00016438,2]
[350152563,1737658234290,-500.0,0.00016438,2]
[350152565,1737658234300,-500.0,0.00016438,2]
[350152567,1737658234310,-500.0,0.00016438,2]
[350152569,1737658234319,-500.0,0.00016438,2]
[350152571,1737658234330,-500.0,0.00016438,2]
[350152573,1737658234339,-500.0,0.00016438,2]
[350152575,1737658234351,-500.0,0.00016438,2]
[350152577,1737658234361,-500.0,0.00016438,2]
[350152579,1737658234370,-500.0,0.00016438,2]
[350152581,1737658234380,-500.0,0.00016438,2]
[350152583,1737658234390,-500.0,0.00016438,2]
[350152585,1737658234399,-500.0,0.00016438,2]
[350152587,1737658234409,-500.0,0.00016438,2]
[350152589,1737658234418,-515.74137141,0.00016438,2]
[350152591,1737658234427,-500.0,0.00016438,2]
[350152593,1737658234438,-500.0,0.00016438,2]
[350152595,1737658234448,-500.0,0.00016438,2]
[350152597,1737658234458,-500.0,0.00016438,2]
[350152599,1737658234468,-502.94029652,0.00016438,2]
[350152601,1737658234478,-484.45109359,0.00016438,2]
[350152603,1737658234487,-500.0,0.00016438,2]
[350152605,1737658234497,-500.0,0.00016438,2]
[350152607,1737658234507,-500.0,0.00016438,2]
[350152609,1737658234516,-500.0,0.00016438,2]
[350152611,1737658234526,-502.740867,0.00016438,2]
[350152613,1737658234538,-500.29132403,0.00016438,2]
[350152615,1737658234547,-500.0,0.00016438,2]
[350152616,1737658234556,-623.67591033,0.00016438,2]
[350152617,1737658234566,-159.10375429,0.00016438,2]
[350152618,1737658234576,-500.0,0.00016438,2]
[350152619,1737658234586,-500.0,0.00016438,2]
[350152620,1737658234596,-500.0,0.00016438,2]
[350152621,1737658234605,-500.88535711,0.00016438,2]
[350152622,1737658234615,-500.0,0.00016438,2]
[350152623,1737658234625,-500.0,0.00016438,2]
[350152624,1737658234635,-500.47975313,0.00016438,2]
[350152625,1737658234645,-500.0,0.00016438,2]
[350152626,1737658234655,-500.0,0.00016438,2]
[350152627,1737658234666,-500.0,0.00016438,2]
[350152628,1737658234676,-500.0,0.00016438,2]
[350152629,1737658234685,-500.0,0.00016438,2]
[350152630,1737658234695,-500.0,0.00016438,2]
[350152631,1737658234704,-500.0,0.00016438,2]
[350152632,1737658234714,-500.0,0.00016438,2]
[350152633,1737658234724,-500.0,0.00016438,2]
[350152634,1737658234734,-385.67967445,0.00016438,2]
[350152635,1737658234744,-500.0,0.00016438,2]
[350152636,1737658234754,-500.66175093,0.00016438,2]
[350152637,1737658234764,-500.0,0.00016438,2]
[350152638,1737658234773,-500.0,0.00016438,2]
[350152639,1737658234783,-500.0,0.00016438,2]
[350152640,1737658234793,-418.125403,0.00016438,2]
[350152641,1737658234802,-398.52209964,0.00016438,2]
[350152642,1737658234812,-500.0,0.00016438,2]
[350152643,1737658234821,-500.77175918,0.00016438,2]
[350152644,1737658234831,-500.0,0.00016438,2]
[350152645,1737658234841,-500.0,0.00016438,2]
[350152646,1737658234850,-500.0,0.00016438,2]
[350152647,1737658234860,-500.0,0.00016438,2]
[350152648,1737658234869,-500.0,0.00016438,2]
[350152649,1737658234879,-500.0,0.00016438,2]
[350152650,1737658234888,-500.0,0.00016438,2]
[350152651,1737658234898,-500.0,0.00016438,2]
[350152652,1737658234907,-500.0,0.00016438,2]
[350152653,1737658234916,-500.0,0.00016438,2]
[350152654,1737658234926,-128.84458721,0.00016438,2]
[350152655,1737658235298,-371.15541279,0.00016438,2]
[350152656,1737658235308,-205.83719156,0.00016438,2]
[350152657,1737658235320,-294.16280844,0.00016438,2]
[350152658,1737658235329,-500.0,0.00016438,2]
[350152659,1737658235338,-460.33591213,0.00016438,2]
[350152660,1737658235348,-500.0,0.00016438,2]
[350152661,1737658235357,-500.0,0.00016438,2]
[350152662,1737658235367,-500.0,0.00016438,2]
[350152663,1737658235377,-502.90021811,0.00016438,2]
[350152664,1737658235387,-507.80309875,0.00016438,2]
[350152665,1737658235396,-500.0,0.00016438,2]
[350152666,1737658235406,-503.37875938,0.00016438,2]
[350152667,1737658235415,-212.66789449,0.00016438,2]
[350152668,1737658235424,-501.6071119,0.00016438,2]
[350152669,1737658235433,-500.0,0.00016438,2]
[350152670,1737658235442,-501.18959287,0.00016438,2]
[350152671,1737658235451,-500.0,0.00016438,2]
[350152672,1737658235461,-500.0,0.00016438,2]
[350152673,1737658235470,-409.40622206,0.00016438,2]
[350152674,1737658235482,-90.59377794,0.00016438,2]
[350152675,1737658235491,-500.0,0.00016438,2]
[350152676,1737658235501,-500.0,0.00016438,2]
[350152677,1737658235511,-341.18981414,0.00016438,2]
[350152678,1737658235520,-500.0,0.00016438,2]
[350152679,1737658235529,-548.87996886,0.00016438,2]
[350152680,1737658235540,-500.71583993,0.00016438,2]
[350152681,1737658235549,-500.0,0.00016438,2]
[350152682,1737658235558,-500.0,0.00016438,2]
[350152683,1737658235567,-500.0,0.00016438,2]
[350152684,1737658235576,-500.0,0.00016438,2]
[350152685,1737658235586,-500.0,0.00016438,2]
[350152686,1737658235596,-500.0,0.00016438,2]
[350152687,1737658235606,-500.0,0.00016438,2]
[350152688,1737658235615,-500.0,0.00016438,2]
[350152689,1737658235625,-500.0,0.00016438,2]
[350152690,1737658235635,-500.0,0.00016438,2]
[350152691,1737658235644,-502.24392014,0.00016438,2]
[350152692,1737658235654,-500.0,0.00016438,2]
[350152693,1737658235663,-500.0,0.00016438,2]
[350152694,1737658235673,-500.0,0.00016438,2]
[350152695,1737658235682,-226.23613048,0.00016438,2]
[350152696,1737658235691,-500.0,0.00016438,2]
[350152697,1737658235701,-500.0,0.00016438,2]
[350152698,1737658235710,-642.37,0.00016438,2]
[350152699,1737658235719,-533.03277058,0.00016438,2]
[350152700,1737658235728,-500.0,0.00016438,2]
[350152701,1737658235738,-500.0,0.00016438,2]
[350152702,1737658235747,-500.0,0.00016438,2]
[350152703,1737658235756,-500.0,0.00016438,2]
[350152704,1737658235765,-607.27777793,0.00016438,2]
[350152705,1737658235778,-37.66441159,0.00016438,2]
[350152706,1737658235792,-401.1698534,0.00016438,2]
[350152707,1737658235803,-98.8301466,0.00016438,2]
[350152708,1737658235813,-500.0,0.00016438,2]
[350152709,1737658235822,-500.0,0.00016438,2]
[350152710,1737658235832,-500.0,0.00016438,2]
[350152711,1737658235842,-500.0,0.00016438,2]
[350152712,1737658235851,-500.0,0.00016438,2]
[350152713,1737658235860,-500.0,0.00016438,2]
[350152714,1737658235869,-503.55104536,0.00016438,2]
[350152715,1737658235879,-500.0,0.00016438,2]
[350152716,1737658235888,-500.0,0.00016438,2]
[350152717,1737658235898,-500.0,0.00016438,2]
[350152718,1737658235907,-500.74947939,0.00016438,2]
[350152719,1737658235917,-500.0,0.00016438,2]
[350152720,1737658235926,-162.885212,0.00016438,2]
[350152721,1737658235935,-501.18123824,0.00016438,2]
[350152722,1737658235944,-500.0,0.00016438,2]
[350152723,1737658235953,-500.0,0.00016438,2]
[350152724,1737658235962,-500.0,0.00016438,2]
[350152725,1737658235972,-500.0,0.00016438,2]
[350152726,1737658235985,-500.0,0.00016438,2]
[350152727,1737658235995,-500.0,0.00016438,2]
[350152728,1737658236004,-500.0,0.00016438,2]
[350152729,1737658236014,-500.0,0.00016438,2]
[350152730,1737658236026,-500.0,0.00016438,2]
[350152731,1737658236042,-500.0,0.00016438,2]
[350152732,1737658236054,-500.0,0.00016438,2]
[350152733,1737658236067,-181.81917,0.00016438,2]
[350152734,1737658236078,-500.0,0.00016438,2]
[350152735,1737658236092,-500.0,0.00016438,2]
[350152736,1737658236105,-500.0,0.00016438,2]
[350152737,1737658236118,-500.0,0.00016438,2]
[350152738,1737658236131,-500.0,0.00016438,2]
[350152739,1737658236145,-500.0,0.00016438,2]
[350152740,1737658236158,-500.0,0.00016438,2]
[350152741,1737658236169,-600.0,0.00016438,2]
[350152742,1737658236181,-517.8335787,0.00016438,2]
[350152743,1737658236194,-500.0,0.00016438,2]
[350152744,1737658236206,-500.0,0.00016438,2]
[350152745,1737658236218,-500.0,0.00016438,2]
[350152746,1737658236231,-500.0,0.00016438,2]
[350152747,1737658236245,-500.0,0.00016438,2]
[350152748,1737658236257,-500.0,0.00016438,2]
[350152749,1737658236270,-500.38367463,0.00016438,2]
[350152750,1737658236284,-500.25539017,0.00016438,2]
[350152751,1737658236296,-365.57642181,0.00016438,2]
[350152752,1737658236321,-134.42357819,0.00016438,2]
[350152753,1737658236334,-500.0,0.00016438,2]
[350152754,1737658236346,-500.82939139,0.00016438,2]
[350152755,1737658236359,-500.0,0.00016438,2]
[350152756,1737658236371,-500.59694933,0.00016438,2]
[350152757,1737658236383,-500.0,0.00016438,2]
[350152758,1737658236393,-220.06583097,0.00016438,2]
[350152762,1737658239157,-279.93416903,0.00016438,2]
[350152763,1737658239167,-500.60813012,0.00016438,2]
[350152764,1737658239176,-500.0,0.00016438,2]
[350152765,1737658239186,-500.0,0.00016438,2]
[350152766,1737658239196,-508.47,0.00016438,2]
[350152767,1737658239205,-500.0,0.00016438,2]
[350152768,1737658239215,-500.0,0.00016438,2]
[350152769,1737658239224,-500.0,0.00016438,2]
[350152770,1737658239233,-500.0,0.00016438,2]
[350152771,1737658239243,-500.0,0.00016438,2]
[350152772,1737658239253,-500.0,0.00016438,2]
[350152773,1737658239263,-500.0,0.00016438,2]
[350152774,1737658239272,-526.64,0.00016438,2]
[350152775,1737658239281,-168.44159694,0.00016438,2]
[350152776,1737658239296,-500.0,0.00016438,2]
[350152777,1737658239306,-293.67969425,0.00016438,2]
[350152778,1737658239315,-500.0,0.00016438,2]
[350152779,1737658239325,-500.0,0.00016438,2]
[350152780,1737658239335,-500.0,0.00016438,2]
[350152781,1737658239344,-500.0,0.00016438,2]
[350152782,1737658239354,-500.0,0.00016438,2]
[350152783,1737658239363,-500.0,0.00016438,2]
[350152784,1737658239372,-500.0,0.00016438,2]
[350152785,1737658239382,-500.0,0.00016438,2]
[350152786,1737658239392,-500.0,0.00016438,2]
[350152787,1737658239401,-501.69411849,0.00016438,2]
[350152788,1737658239411,-500.0,0.00016438,2]
[350152789,1737658239420,-500.0,0.00016438,2]
[350152790,1737658239430,-500.0,0.00016438,2]
[350152791,1737658239439,-544.83,0.00016438,2]
[350152792,1737658239448,-500.0,0.00016438,2]
[350152793,1737658239457,-861.93,0.00016438,2]
[350152794,1737658239466,-500.0,0.00016438,2]
[350152795,1737658239475,-500.0,0.00016438,2]
[350152796,1737658239484,-500.0,0.00016438,2]
[350152797,1737658239494,-500.0,0.00016438,2]
[350152798,1737658239503,-588.58,0.00016438,2]
[350152799,1737658239512,-566.25,0.00016438,2]
[350152800,1737658239522,-500.0,0.00016438,2]
[350152801,1737658239532,-500.0,0.00016438,2]
[350152802,1737658239546,-500.0,0.00016438,2]
[350152803,1737658239555,-366.07594737,0.00016438,2]
[350152804,1737658239567,-133.92405263,0.00016438,2]
[350152805,1737658239577,-388.44122817,0.00016438,2]
[350152806,1737658239589,-111.55877183,0.00016438,2]
[350152807,1737658239599,-500.0,0.00016438,2]
[350152808,1737658239609,-938.47,0.00016438,2]
[350152809,1737658239618,-748.38,0.00016438,2]
[350152810,1737658239628,-1668.7,0.00016438,2]
[350152811,1737658239638,-500.0,0.00016438,2]
[350152812,1737658239647,-1990.88,0.00016438,2]
[350152813,1737658239657,-500.0,0.00016438,2]
[350152814,1737658239666,-585.14314902,0.00016438,2]
[350152815,1737658239676,-500.0,0.00016438,2]
[350152816,1737658239685,-500.0,0.00016438,2]
[350152817,1737658239695,-705.33,0.00016438,2]
[350152818,1737658239704,-500.0,0.00016438,2]
[350152819,1737658239713,-542.95,0.00016438,2]
[350152820,1737658239723,-747.43,0.00016438,2]
[350152821,1737658239732,-500.0,0.00016438,2]
[350152822,1737658239742,-500.0,0.00016438,2]
[350152823,1737658239751,-853.53,0.00016438,2]
[350152824,1737658239760,-500.0,0.00016438,2]
[350152825,1737658239770,-500.0,0.00016438,2]
[350152826,1737658239779,-639.49088621,0.00016438,2]
[350152827,1737658239795,-1584.32,0.00016438,2]
[350152828,1737658239804,-500.0,0.00016438,2]
[350152829,1737658239813,-500.0,0.00016438,2]
[350152830,1737658239823,-500.0,0.00016438,2]
[350152831,1737658239832,-1287.37,0.00016438,2]
[350152832,1737658239841,-508.60085833,0.00016438,2]
[350152833,1737658239850,-500.0,0.00016438,2]
[350152834,1737658239860,-500.0,0.00016438,2]
[350152835,1737658239870,-500.0,0.00016438,2]
[350152836,1737658239879,-500.0,0.00016438,2]
[350152837,1737658239889,-500.0,0.00016438,2]
[350152838,1737658239900,-500.0,0.00016438,2]
[350152839,1737658239909,-261.14639061,0.00016438,2]
[350152840,1737658239919,-500.0,0.00016438,2]
[350152841,1737658239930,-500.0,0.00016438,2]
[350152842,1737658239939,-500.0,0.00016438,2]
[350152843,1737658239950,-500.0,0.00016438,2]
[350152844,1737658239961,-500.0,0.00016438,2]
[350152845,1737658239971,-500.0,0.00016438,2]
[350152846,1737658239980,-500.0,0.00016438,2]
[350152847,1737658239990,-582.37,0.00016438,2]
[350152848,1737658240000,-594.2,0.00016438,2]
[350152849,1737658240010,-500.0,0.00016438,2]
[350152850,1737658240022,-500.0,0.00016438,2]
[350152851,1737658240033,-500.0,0.00016438,2]
[350152852,1737658240043,-500.0,0.00016438,2]
[350152853,1737658240053,-500.0,0.00016438,2]
[350152854,1737658240063,-500.0,0.00016438,2]
[350152855,1737658240072,-753.64,0.00016438,2]
[350152856,1737658240081,-500.0,0.00016438,2]
[350152857,1737658240091,-500.0,0.00016438,2]
[350152858,1737658240101,-500.0,0.00016438,2]
[350152859,1737658240110,-673.89,0.00016438,2]
[350152860,1737658240120,-500.0,0.00016438,2]
[350152861,1737658240131,-500.0,0.00016438,2]
[350152862,1737658240141,-500.0,0.00016438,2]
[350152863,1737658240154,-500.0,0.00016438,2]
[350152864,1737658240165,-500.0,0.00016438,2]
[350152865,1737658240174,-500.0,0.00016438,2]
[350152866,1737658240183,-500.0,0.00016438,2]
[350152867,1737658240192,-987.36,0.00016438,2]
[350152868,1737658240202,-500.0,0.00016438,2]
[350152869,1737658240211,-500.0,0.00016438,2]
[350152871,1737658240221,-1881.23457544,0.00016438,2]
[350152873,1737658240234,-275.83066418,0.00016438,2]
[350152875,1737658240961,-236.10476038,0.00016438,2]
[350152876,1737658240970,-252.94523796,0.00016438,2]
[350152877,1737658240983,-691.50476204,0.00016438,2]
[350152878,1737658240994,-500.0,0.00016438,2]
[350152879,1737658241003,-500.0,0.00016438,2]
[350152880,1737658241014,-154.34923286,0.00016438,2]
[350152881,1737658241032,-345.65076714,0.00016438,2]
[350152882,1737658241048,-500.0,0.00016438,2]
[350152883,1737658241058,-500.0,0.00016438,2]
[350152884,1737658241068,-642.9561592,0.00016438,2]
[350152885,1737658241078,-651.45,0.00016438,2]
[350152886,1737658241087,-500.0,0.00016438,2]
[350152887,1737658241097,-500.0,0.00016438,2]
[350152888,1737658241241,-465.14526139,0.00016438,2]
[350152889,1737658241250,-807.59,0.00016438,2]
[350152890,1737658241260,-982.32,0.00016438,2]
[350152891,1737658241269,-500.0,0.00016438,2]
[350152892,1737658241280,-500.0,0.00016438,2]
[350152893,1737658241295,-500.0,0.00016438,2]
[350152894,1737658241305,-1721.24,0.00016438,2]
[350152895,1737658241314,-805.49,0.00016438,2]
[350152896,1737658241323,-500.0,0.00016438,2]
[350152897,1737658241333,-500.0,0.00016438,2]
[350152898,1737658241343,-500.0,0.00016438,2]
[350152899,1737658241353,-500.0,0.00016438,2]
[350152900,1737658241362,-500.0,0.00016438,2]
[350152901,1737658241372,-1798.57,0.00016438,2]
[350152902,1737658241381,-500.0,0.00016438,2]
[350152903,1737658241390,-507.36710628,0.00016438,2]
[350152904,1737658241400,-2030.02,0.00016438,2]
[350152905,1737658241410,-1169.92,0.00016438,2]
[350152906,1737658241420,-503.9085247,0.00016438,2]
[350152907,1737658241429,-500.0,0.00016438,2]
[350152908,1737658241439,-500.0,0.00016438,2]
[350152909,1737658241449,-500.0,0.00016438,2]
[350152910,1737658241459,-500.0,0.00016438,2]
[350152911,1737658241468,-500.0,0.00016438,2]
[350152912,1737658241478,-850.57,0.00016438,2]
[350152913,1737658241488,-781.26,0.00016438,2]
[350152914,1737658241497,-500.0,0.00016438,2]
[350152915,1737658241506,-715.04,0.00016438,2]
[350152916,1737658241518,-504.36999896,0.00016438,2]
[350152917,1737658241528,-500.0,0.00016438,2]
[350152918,1737658241541,-1977.57,0.00016438,2]
[350152919,1737658241551,-1475.53,0.00016438,2]
[350152920,1737658241560,-500.0,0.00016438,2]
[350152921,1737658241570,-3711.55,0.00016438,2]
[350152922,1737658241579,-652.39,0.00016438,2]
[350152923,1737658241589,-500.0,0.00016438,2]
[350152924,1737658241598,-500.0,0.00016438,2]
[350152925,1737658241608,-500.0,0.00016438,2]
[350152926,1737658241618,-500.0,0.00016438,2]
[350152927,1737658241627,-818.94,0.00016438,2]
[350152928,1737658241637,-2336.69,0.00016438,2]
[350152929,1737658241648,-1170.0,0.00016438,2]
[350152930,1737658241658,-500.0,0.00016438,2]
[350152931,1737658241667,-162.885211,0.00016438,2]
[350152932,1737658241677,-500.0,0.00016438,2]
[350152933,1737658241686,-500.0,0.00016438,2]
[350152934,1737658241695,-500.0,0.00016438,2]
[350152935,1737658241704,-3941.09,0.00016438,2]
[350152936,1737658241714,-500.0,0.00016438,2]
[350152937,1737658241723,-500.0,0.00016438,2]
[350152938,1737658241732,-500.0,0.00016438,2]
[350152939,1737658241742,-253.53091151,0.00016438,2]
[350152940,1737658241751,-912.7,0.00016438,2]
[350152941,1737658241761,-500.0,0.00016438,2]
[350152942,1737658241771,-500.0,0.00016438,2]
[350152943,1737658241780,-500.0,0.00016438,2]
[350152944,1737658241793,-847.58,0.00016438,2]
[350152945,1737658241803,-500.0,0.00016438,2]
[350152946,1737658241812,-1621.95,0.00016438,2]
[350152947,1737658241822,-500.0,0.00016438,2]
[350152948,1737658241831,-822.52,0.00016438,2]
[350152949,1737658241841,-500.0,0.00016438,2]
[350152950,1737658241850,-1776.05,0.00016438,2]
[350152951,1737658241859,-500.0,0.00016438,2]
[350152952,1737658241868,-500.0,0.00016438,2]
[350152953,1737658241878,-500.0,0.00016438,2]
[350152954,1737658241887,-1534.34,0.00016438,2]
[350152955,1737658241898,-720.68,0.00016438,2]
[350152956,1737658241908,-181.819162,0.00016438,2]
[350152957,1737658241918,-500.0,0.00016438,2]
[350152958,1737658241927,-1787.97,0.00016438,2]
[350152959,1737658241936,-1933.44,0.00016438,2]
[350152960,1737658241945,-500.0,0.00016438,2]
[350152961,1737658241954,-500.0,0.00016438,2]
[350152962,1737658241964,-500.0,0.00016438,2]
[350152963,1737658241974,-748.03,0.00016438,2]
[350152964,1737658241984,-500.0,0.00016438,2]
[350152965,1737658241994,-500.0,0.00016438,2]
[350152966,1737658242003,-500.0,0.00016438,2]
[350152967,1737658242012,-208.15829287,0.00016438,2]
[350152968,1737658242026,-350.14170713,0.00016438,2]
[350152969,1737658242037,-500.0,0.00016438,2]
[350152970,1737658242046,-62.43860848,0.00016438,2]
[350152971,1737658242059,-969.79139152,0.00016438,2]
[350152972,1737658242069,-500.0,0.00016438,2]
[350152973,1737658242078,-500.0,0.00016438,2]
[350152974,1737658242087,-527.72,0.00016438,2]
[350152975,1737658242096,-500.0,0.00016438,2]
[350152976,1737658242105,-433.61939663,0.00016438,2]
[350152977,1737658242123,-66.38060337,0.00016438,2]
[350152978,1737658242132,-913.44,0.00016438,2]
[350152979,1737658242142,-500.0,0.00016438,2]
[350152980,1737658242152,-500.0,0.00016438,2]
[350152981,1737658242161,-500.0,0.00016438,2]
[350152982,1737658242171,-1591.39,0.00016438,2]
[350152983,1737658242180,-500.0,0.00016438,2]
[350152984,1737658242189,-500.0,0.00016438,2]
[350152985,1737658242198,-505.95289121,0.00016438,2]
[350152986,1737658242208,-2035.37354691,0.00016438,2]
[350152987,1737658242219,-851.03645309,0.00016438,2]
[350152988,1737658242228,-31.90694986,0.00016438,2]
[350152989,1737658242240,-468.09305014,0.00016438,2]
[350152990,1737658242250,-1161.34,0.00016438,2]
[350152991,1737658242261,-500.0,0.00016438,2]
[350152992,1737658242272,-2405.56,0.00016438,2]
[350152993,1737658242282,-500.0,0.00016438,2]
[350152994,1737658242295,-500.0,0.00016438,2]
[350152995,1737658242306,-507.94,0.00016438,2]
[350152996,1737658242316,-500.0,0.00016438,2]
[350152997,1737658242326,-500.0,0.00016438,2]
[350152998,1737658242335,-500.0,0.00016438,2]
[350152999,1737658242346,-500.0,0.00016438,2]
[350153000,1737658242355,-500.0,0.00016438,2]
[350153001,1737658242366,-500.0,0.00016438,2]
[350153002,1737658242376,-500.0,0.00016438,2]
[350153003,1737658242386,-500.0,0.00016438,2]
[350153004,1737658242396,-500.0,0.00016438,2]
[350153005,1737658242407,-1300.59,0.00016438,2]
[350153006,1737658242418,-500.0,0.00016438,2]
[350153007,1737658242427,-616.06,0.00016438,2]
[350153008,1737658242437,-2024.51,0.00016438,2]
[350153009,1737658242446,-500.0,0.00016438,2]
[350153010,1737658242455,-500.0,0.00016438,2]
[350153011,1737658242465,-500.0,0.00016438,2]
[350153012,1737658242474,-963.36,0.00016438,2]
[350153013,1737658242483,-500.0,0.00016438,2]
[350153014,1737658242493,-500.0,0.00016438,2]
[350153015,1737658242503,-500.0,0.00016438,2]
[350153016,1737658242512,-500.0,0.00016438,2]
[350153017,1737658242522,-500.0,0.00016438,2]
[350153018,1737658242531,-500.0,0.00016438,2]
[350153019,1737658242545,-524.57745042,0.00016438,2]
[350153020,1737658242554,-500.0,0.00016438,2]
[350153021,1737658242563,-500.0,0.00016438,2]
[350153022,1737658242573,-500.0,0.00016438,2]
[350153023,1737658242582,-500.0,0.00016438,2]
[350153024,1737658242591,-704.24,0.00016438,2]
[350153025,1737658242601,-500.0,0.00016438,2]
[350153026,1737658242610,-500.0,0.00016438,2]
[350153027,1737658242619,-500.0,0.00016438,2]
[350153028,1737658242628,-500.0,0.00016438,2]
[350153029,1737658242637,-500.0,0.00016438,2]
[350153030,1737658242647,-500.0,0.00016438,2]
[350153031,1737658242656,-500.0,0.00016438,2]
[350153032,1737658242665,-500.0,0.00016438,2]
[350153033,1737658242674,-500.0,0.00016438,2]
[350153034,1737658242683,-930.62,0.00016438,2]
[350153035,1737658242692,-500.0,0.00016438,2]
[350153036,1737658242702,-500.0,0.00016438,2]
[350153037,1737658242711,-501.57969947,0.00016438,2]
[350153038,1737658242721,-500.0,0.00016438,2]
[350153039,1737658242732,-500.0,0.00016438,2]
[350153040,1737658242743,-500.0,0.00016438,2]
[350153041,1737658242752,-500.0,0.00016438,2]
[350153042,1737658242762,-593.58,0.00016438,2]
[350153043,1737658242772,-500.0,0.00016438,2]
[350153044,1737658242781,-500.0,0.00016438,2]
[350153045,1737658242795,-500.0,0.00016438,2]
[350153046,1737658242805,-500.0,0.00016438,2]
[350153047,1737658242815,-491.51049216,0.00016438,2]
[350153048,1737658242832,-39.63950784,0.00016438,2]
[350153049,1737658242842,-500.0,0.00016438,2]
[350153050,1737658242851,-500.0,0.00016438,2]
[350153051,1737658242860,-28495.99670242,0.00016438,2]
[350153052,1737658242873,-13465.3909682,0.00016438,2]
[350153053,1737658242884,-822.57,0.00016438,2]
[350153054,1737658242895,-18868.59000005,0.00016438,2]
[350153055,1737658242907,-19600.0,0.00016438,2]
[350153057,1737658243174,-500.0,0.00016438,2]
[350153058,1737658243185,-581.34,0.00016438,2]
[350153059,1737658243194,-21720.64173531,0.00016438,2]
[350153060,1737658243203,-225.16299991,0.00016438,2]
[350153061,1737658243212,-161.87816794,0.00016473,2]
[350153062,1737658243222,-161.07592143,0.00016473,2]
[350153063,1737658243231,-500.0,0.00016473,2]
[350153064,1737658243241,-201.07521936,0.00016473,2]
[350153065,1737658243251,-151.07111051,0.00016473,2]
[350153066,1737658243260,-276.84425616,0.00016473,2]
[350153067,1737658243269,-9235.9369,0.00016511,2]
[350153068,1737658243279,-3000.0,0.0001654,2]
[350153069,1737658243290,-500.0,0.00016544,2]
[350153070,1737658243300,-500.0,0.00016578,2]
[350153071,1737658243309,-635.30203794,0.00016581,2]
[350153072,1737658243319,-5000.0,0.00016611,2]
[350153073,1737658243328,-2273.56,0.00016611,2]